[Event "76th GEO-ch Women 2019"]
[Site "Tbilisi"]
[Date "2019.03.30"]
[Round "11.2"]
[White "Tsatsalashvili, Keti"]
[Black "Khomeriki, Nino"]
[Result "1-0"]
[WhiteElo "2326"]
[BlackElo "2347"]
[Annotator "NA"]
[PlyCount "96"]
[EventDate "2019.03.19"]
[EventType "swiss"]
[EventCountry "GEO"]
[SourceTitle "playchess.com"]
[Source "ChessBase"]
[SourceQuality "1"]
[TimeControl "40/5400+30:1800+30"]

1. d4 {[%emt 0:00:00]} d5 {[%emt 0:05:18]} 2. Nf3 {[%emt 0:00:38]} Nf6 {[%emt 0:00:09]} 3. c4 {[%emt 0:00:25]} e6 {[%emt 0:00:28]} 4. Nc3 {[%emt 0:00:11]} Bb4 {[%emt 0:01:56]} 5. Qa4+ {[%emt 0:00:12]} Nc6 {[%emt 0:00:09]} 6. Bg5 {[%emt 0:00:05]} h6 {[%emt 0:00:36]} 7. Bxf6 {[%emt 0:00:18]} Qxf6 {[%emt 0:00:05]} 8. e3 {[%emt 0:00:09]} O-O {[%emt 0:00:14] D38: Queen's Gambit Declined: Ragozin Defence (4 Nf3 Bb4)} 9. Rc1 {[%emt 0:00:33]} (9. Be2 dxc4 10. Bxc4 e5 11. O-O exd4 12. Nd5 Qd6 13. Nxb4 Qxb4 14. Qxb4 Nxb4 15. Nxd4 Bd7 16. a3 {1-0 (49) Duda,J (2738)-Vidit,S (2695) chess.com INT 2019}) 9... Bd7 {[%emt 0:05:31]} 10. Qc2 {[%emt 0:02:41]} Rac8 $146 {[%emt 0:05:34]} ({Predecessor:} 10... Rfe8 11. a3 Bxc3+ 12. Qxc3 Rac8 {½-½ (12) Barria Zuniga,D (2395)-Aguirre Contreras,C (2272) Santiago de Chile 2018}) 11. a3 {[%emt 0:06:08]} Bxc3+ {[%emt 0:01:58]} 12. Qxc3 {[%emt 0:00:09]} Rfd8 {[%emt 0:04:22]} 13. Be2 {[%emt 0:02:13]} dxc4 {[%emt 0:01:48]} 14. Bxc4 {[%emt 0:02:39]} Ne7 {[%emt 0:01:04]} 15. b4 {[%emt 0:06:44]} Bc6 {[%emt 0:05:06]} 16. Be2 {[%emt 0:00:37]} Ng6 {[%emt 0:00:41]} 17. O-O {[%emt 0:03:06]} Bd5 {[%emt 0:04:36]} 18. Qc2 {[%emt 0:14:05]} e5 {[%emt 0:04:01]} 19. e4 {[%emt 0:03:31]} Be6 {[%emt 0:00:08]} 20. dxe5 {[%emt 0:04:44]} Nxe5 {[%emt 0:00:07]} 21. Nxe5 {[%emt 0:00:36]} Qxe5 {[%emt 0:00:07]} 22. f4 {[%emt 0:01:10]} Qd4+ {[%emt 0:00:35]} 23. Kh1 {[%emt 0:00:05]} f6 {[%emt 0:05:30]} 24. h3 {[%emt 0:15:02]} c6 {[%emt 0:02:21]} 25. Rcd1 {[%emt 0:03:23]} Qe3 {[%emt 0:03:23]} 26. Rf3 {[%emt 0:05:13]} Rxd1+ {[%emt 0:04:08]} 27. Bxd1 {[%emt 0:00:07]} Qe1+ {[%emt 0:00:05]} 28. Kh2 {[%emt 0:00:03]} a5 {[%emt 0:04:36]} 29. bxa5 {[%emt 0:01:09]} Qxa5 {[%emt 0:03:26]} 30. Qb2 {[%emt 0:00:51]} Qc7 {[%emt 0:02:15]} 31. Bb3 {[%emt 0:01:06]} Bxb3 {[%emt 0:00:46]} 32. Qxb3+ {[%emt 0:00:01]} Qf7 {[%emt 0:01:24]} 33. Qb2 {[%emt 0:01:28]} c5 {[%emt 0:17:54]} 34. e5 {[%emt 0:03:52]} f5 {[%emt 0:05:05]} 35. Qc3 {[%emt 0:05:54]} c4 {[%emt 0:00:47]} 36. Rf2 {[%emt 0:01:50]} b5 {[%emt 0:01:47]} 37. Rd2 {[%emt 0:01:09]} Rc6 {[%emt 0:03:48]} 38. Qa5 {[%emt 0:02:04]} Qc7 {[%emt 0:06:09]} 39. Qxb5 {[%emt 0:01:56]} c3 {[%emt 0:00:05]} 40. Qd5+ {[%emt 0:00:00]} Kh7 {[%emt 0:00:00]} 41. Rc2 {[%emt 0:02:17]} g5 {[%emt 0:07:39]} 42. Qd3 {[%emt 0:08:22]} gxf4 {[%emt 0:02:07]} 43. Qxf5+ {[%emt 0:00:14]} Rg6 {[%emt 0:00:01]} 44. Qxf4 {[%emt 0:01:14]} Rg5 {[%emt 0:00:07]} 45. Qe4+ {[%emt 0:02:34]} Kg7 {[%emt 0:00:05]} 46. Re2 {[%emt 0:01:36]} Qc5 {[%emt 0:00:59]} 47. a4 {[%emt 0:00:34]} Qc7 $18 {[%emt 0:01:06]} 48. g3 {[%emt 0:02:23]} h5 {[%emt 0:05:58]} 1-0

[Event "76th GEO-ch Women 2019"]
[Site "Tbilisi"]
[Date "2019.03.30"]
[Round "11.3"]
[White "Esadze, Tamari"]
[Black "Purtseladze, Maka"]
[Result "0-1"]
[ECO "C04"]
[WhiteElo "2078"]
[BlackElo "2282"]
[Annotator "NA"]
[PlyCount "64"]
[EventDate "2019.03.19"]
[EventType "swiss"]
[EventCountry "GEO"]
[SourceTitle "playchess.com"]
[Source "ChessBase"]
[SourceQuality "1"]
[TimeControl "40/5400+30:1800+30"]

1. e4 {[%emt 0:00:00]} e6 {[%emt 0:00:00]} 2. d4 {[%emt 0:00:00]} d5 {[%emt 0:00:00]} 3. Nd2 {[%emt 0:00:00]} Nc6 {[%emt 0:00:00]} 4. Ngf3 {[%emt 0:00:08]} Nf6 {[%emt 0:00:00]} 5. e5 {[%emt 0:01:19]} Nd7 {[%emt 0:00:00]} 6. c3 {[%emt 0:03:23]} f6 {[%emt 0:00:14]} 7. exf6 {[%emt 0:00:52]} Qxf6 {[%emt 0:00:07]} 8. Bd3 {[%emt 0:04:20]} Bd6 {[%emt 0:02:24]} 9. O-O {[%emt 0:15:14] C04: French Tarrasch: 3...Nc6} (9. Qc2 h6 10. Bg6+ Kf8 11. Nb3 e5 12. Qf5 Qxf5 13. Bxf5 Nb6 14. Bxc8 Rxc8 15. dxe5 Nxe5 16. Nxe5 Bxe5 {½-½ (27) Kovacevic,A (2563)-Stella,A (2477) Cappelle-la-Grande 2013}) 9... O-O {[%emt 0:00:42]} 10. Nb3 {[%emt 0:07:04]} e5 {[%emt 0:01:12]} 11. Bg5 {[%emt 0:08:34]} Qf7 {[%emt 0:00:42]} 12. dxe5 {[%emt 0:01:34]} Ndxe5 {[%emt 0:22:27]} 13. Nbd4 $146 {[%emt 0:09:34]} ({Predecessor:} 13. Be2 Be6 14. Nbd4 Nxf3+ 15. Nxf3 Qh5 16. h4 Qg6 {0-1 (32) Post,H (1879)-Manukyan,S (1626) Batumi 2016}) 13... Nxd3 {[%emt 0:05:24]} 14. Qxd3 {[%emt 0:00:05]} Qh5 {[%emt 0:00:51]} 15. Bh4 {[%emt 0:29:18]} Nxd4 {[%emt 0:00:46]} 16. cxd4 {[%emt 0:03:06]} Bg4 {[%emt 0:17:15]} 17. Bg3 {[%emt 0:01:47]} Bxf3 {[%emt 0:00:29]} 18. gxf3 {[%emt 0:00:17]} Rxf3 {[%emt 0:00:04]} 19. Qb5 {[%emt 0:00:49]} Raf8 {[%emt 0:02:13]} 20. Qxb7 $19 {[%emt 0:02:15]} Qf5 {[%emt 0:01:41]} 21. Qb5 {[%emt 0:06:02]} h5 {[%emt 0:02:38]} 22. Rae1 {[%emt 0:01:09]} h4 {[%emt 0:01:00]} 23. Bxd6 {[%emt 0:00:05]} cxd6 {[%emt 0:00:54]} 24. Qe2 {[%emt 0:01:18]} Rf6 {[%emt 0:02:32]} 25. Kh1 {[%emt 0:01:00]} h3 {[%emt 0:11:27]} 26. Qe8+ {[%emt 0:02:35]} Kh7 {[%emt 0:01:15]} 27. Re7 {[%emt 0:00:22]} Rg6 {[%emt 0:03:17]} 28. Rg1 {[%emt 0:01:14]} Rxg1+ {[%emt 0:00:37]} 29. Kxg1 {[%emt 0:00:02]} Qg4+ {[%emt 0:00:26]} 30. Kf1 {[%emt 0:00:04]} Qg2+ {[%emt 0:00:04]} 31. Ke1 {[%emt 0:00:09]} Qxf2+ {[%emt 0:00:05]} 32. Kd1 {[%emt 0:00:02]} Rd3+ {[%emt 0:00:07]} 0-1

[Event "76th GEO-ch Women 2019"]
[Site "Tbilisi"]
[Date "2019.03.30"]
[Round "11.4"]
[White "Vakhania, Aleksandra"]
[Black "Gvetadze, Sofio"]
[Result "1-0"]
[ECO "B07"]
[WhiteElo "2175"]
[BlackElo "2321"]
[Annotator "NA"]
[PlyCount "77"]
[EventDate "2019.03.19"]
[EventType "swiss"]
[EventCountry "GEO"]
[SourceTitle "playchess.com"]
[Source "ChessBase"]
[SourceQuality "1"]
[TimeControl "40/5400+30:1800+30"]

1. d4 {[%emt 0:03:03]} d6 {[%emt 0:00:00]} 2. e4 {[%emt 0:01:37]} Nf6 {[%emt 0:00:00]} 3. Nc3 {[%emt 0:00:04]} Nbd7 {[%emt 0:00:02]} 4. Nf3 {[%emt 0:00:09]} e5 {[%emt 0:00:03]} 5. Bc4 {[%emt 0:02:18]} Be7 {[%emt 0:00:05]} 6. dxe5 {[%emt 0:04:54]} dxe5 {[%emt 0:00:11]} 7. Ng5 {[%emt 0:08:39]} O-O {[%emt 0:00:37]} 8. Bxf7+ $14 {[%emt 0:01:01]} Rxf7 {[%emt 0:00:09]} 9. Ne6 {[%emt 0:00:04]} Qe8 {[%emt 0:00:06]} 10. Nxc7 {[%emt 0:00:04]} Qd8 {[%emt 0:00:04]} 11. Nxa8 {[%emt 0:00:11]} b6 {[%emt 0:04:09]} 12. Be3 {[%emt 0:20:34]} Bb7 {[%emt 0:05:12]} 13. Nxb6 {[%emt 0:00:35]} axb6 {[%emt 0:00:04]} 14. Qd3 {[%emt 0:03:23]} Qa8 {[%emt 0:11:19]} 15. f3 {[%emt 0:01:26]} Ba6 {[%emt 0:01:53]} 16. Qd2 {[%emt 0:00:35]} Bb4 {[%emt 0:01:23]} 17. a3 {[%emt 0:03:25]} Bc4 {[%emt 0:00:24]} 18. Rd1 {[%emt 0:01:05]} Nxe4 {[%emt 0:10:18]} 19. fxe4 {[%emt 0:02:52]} Bxc3 {[%emt 0:00:09]} 20. Qxc3 {[%emt 0:01:54]} Qxe4 {[%emt 0:00:08]} 21. Rd2 {[%emt 0:02:13]} h6 {[%emt 0:03:26]} 22. b3 {[%emt 0:07:35]} Ba6 {[%emt 0:00:18]} 23. Kd1 {[%emt 0:01:33]} Nf6 {[%emt 0:01:02]} 24. Bxb6 {[%emt 0:02:17]} Nd5 {[%emt 0:20:10]} 25. Qa5 {[%emt 0:00:51]} Bb7 {[%emt 0:01:13]} 26. Re1 {[%emt 0:01:42]} Qg4+ {[%emt 0:00:27]} 27. Kc1 {[%emt 0:00:20]} Qf4 {[%emt 0:04:05]} 28. g3 {[%emt 0:02:04]} Qg5 {[%emt 0:01:52]} 29. c4 {[%emt 0:01:36]} Nf6 {[%emt 0:03:27]} 30. Qxe5 {[%emt 0:01:14]} Qg6 {[%emt 0:00:01]} 31. Qe6 {[%emt 0:02:57]} Kh7 {[%emt 0:00:25]} 32. Bd4 {[%emt 0:00:38]} Be4 {[%emt 0:01:33]} 33. Bxf6 {[%emt 0:00:19]} Bf5 {[%emt 0:00:02]} 34. Qe5 {[%emt 0:03:03]} Rxf6 {[%emt 0:00:09]} 35. Rf1 {[%emt 0:00:50]} Qg5 {[%emt 0:00:50]} 36. h4 {[%emt 0:00:18]} Qg4 {[%emt 0:00:32]} 37. Rdf2 {[%emt 0:00:55]} Kg6 {[%emt 0:01:41]} 38. Rxf5 {[%emt 0:00:37]} Rxf5 {[%emt 0:00:03]} 39. Qe6+ {[%emt 0:00:31]} 1-0

[Event "76th GEO-ch Women 2019"]
[Site "Tbilisi"]
[Date "2019.03.30"]
[Round "11.5"]
[White "Arabidze, Meri"]
[Black "Tsereteli, Tamar"]
[Result "1-0"]
[ECO "A56"]
[WhiteElo "2392"]
[BlackElo "2315"]
[Annotator "NA"]
[PlyCount "71"]
[EventDate "2019.03.19"]
[EventType "swiss"]
[EventCountry "GEO"]
[SourceTitle "playchess.com"]
[Source "ChessBase"]
[SourceQuality "1"]
[TimeControl "40/5400+30:1800+30"]

1. d4 {[%emt 0:03:15]} Nf6 {[%emt 0:00:00]} 2. c4 {[%emt 0:00:06]} c5 {[%emt 0:00:00]} 3. d5 {[%emt 0:00:32]} e5 {[%emt 0:00:23]} 4. Nc3 {[%emt 0:01:35]} d6 {[%emt 0:00:17]} 5. e4 {[%emt 0:00:26]} Be7 {[%emt 0:00:49]} 6. Be2 {[%emt 0:05:40]} Nbd7 {[%emt 0:00:23]} 7. Nf3 {[%emt 0:00:39] A56: Czech Benoni} a6 {[%emt 0:00:32]} (7... O-O 8. O-O Nh5 9. Ne1 Nf4 10. Bxf4 exf4 11. Nd3 Bg5 12. Bg4 Re8 13. Bxd7 Bxd7 14. Qf3 a6 15. a4 Qa5 16. Nxf4 {½-½ (46) Hammer,J (2608)-Aronian,L (2813) Stavanger 2013}) 8. a4 {[%emt 0:00:33]} b6 {[%emt 0:00:43]} 9. O-O {[%emt 0:01:38]} O-O {[%emt 0:00:18]} 10. Ne1 {[%emt 0:07:08]} Ne8 {[%emt 0:00:45]} 11. Nd3 {[%emt 0:02:34]} Bg5 {[%emt 0:01:20]} 12. Rb1 {[%emt 0:01:03]} g6 $146 {[%emt 0:00:46]} ({Predecessor:} 12... Bxc1 13. Qxc1 g6 14. f4 exf4 15. Qxf4 {½-½ (93) Jedlicka,A (2226)-Sergeev,V (2436) Pardubice 2013}) 13. b4 {[%emt 0:02:18]} Bxc1 {[%emt 0:07:38]} 14. Qxc1 {[%emt 0:00:24]} a5 {[%emt 0:08:16]} 15. bxc5 {[%emt 0:03:09]} bxc5 {[%emt 0:00:38]} 16. Nb5 {[%emt 0:14:12]} Ba6 {[%emt 0:01:09]} 17. f4 {[%emt 0:05:18]} exf4 {[%emt 0:09:25]} 18. Qxf4 {[%emt 0:01:31]} Qe7 {[%emt 0:04:38]} 19. Bg4 {[%emt 0:04:09]} Bxb5 {[%emt 0:08:10]} 20. Rxb5 $11 {[%emt 0:11:52]} Ne5 {[%emt 0:08:35]} 21. Nxe5 {[%emt 0:01:32]} dxe5 {[%emt 0:01:28]} 22. Qe3 {[%emt 0:01:35]} Nd6 {[%emt 0:00:39]} 23. Qxc5 {[%emt 0:06:44]} Qd8 {[%emt 0:01:11]} 24. Rbb1 {[%emt 0:05:53]} h5 {[%emt 0:03:41]} 25. Bh3 {[%emt 0:11:09]} Rb8 {[%emt 0:10:56]} 26. Rb5 {[%emt 0:03:58]} Nxe4 {[%emt 0:03:31]} 27. Qe3 {[%emt 0:00:14]} Nd6 {[%emt 0:00:02]} 28. Rxb8 {[%emt 0:00:48]} Qxb8 {[%emt 0:00:01]} 29. c5 {[%emt 0:00:18]} Qa7 {[%emt 0:03:11]} 30. Rc1 {[%emt 0:00:10]} Re8 {[%emt 0:04:18]} 31. Kf2 {[%emt 0:00:54]} Nb7 {[%emt 0:08:25]} 32. c6 {[%emt 0:00:45]} Qxe3+ {[%emt 0:00:11]} 33. Kxe3 {[%emt 0:00:04]} Nd6 {[%emt 0:00:04]} 34. c7 {[%emt 0:01:04]} f5 {[%emt 0:01:05]} 35. Rc6 {[%emt 0:00:12]} Nc8 {[%emt 0:01:34]} 36. d6 {[%emt 0:00:21]} 1-0

[Event "76th GEO-ch Women 2019"]
[Site "Tbilisi"]
[Date "2019.03.30"]
[Round "11.6"]
[White "Mikadze, Miranda"]
[Black "Khukhashvili, Sopiko"]
[Result "0-1"]
[ECO "B06"]
[WhiteElo "2266"]
[BlackElo "2342"]
[Annotator "NA"]
[PlyCount "86"]
[EventDate "2019.03.19"]
[EventType "swiss"]
[EventCountry "GEO"]
[SourceTitle "playchess.com"]
[Source "ChessBase"]
[SourceQuality "1"]
[TimeControl "40/5400+30:1800+30"]

1. e4 {[%emt 0:00:00]} d6 {[%emt 0:00:00]} 2. d4 {[%emt 0:00:00]} g6 {[%emt 0:00:00]} 3. Nc3 {[%emt 0:01:46]} Bg7 {[%emt 0:00:00]} 4. g3 {[%emt 0:00:02]} Nd7 {[%emt 0:05:39]} 5. Bg2 {[%emt 0:00:06]} c6 {[%emt 0:01:01]} 6. a4 {[%emt 0:01:23]} a5 {[%emt 0:00:22]} 7. Nge2 {[%emt 0:00:10]} Ngf6 {[%emt 0:00:58]} 8. O-O {[%emt 0:00:07]} O-O {[%emt 0:00:45]} 9. h3 {[%emt 0:00:02]} e5 {[%emt 0:00:53]} 10. Bg5 {[%emt 0:01:12] B07: Pirc Defence: Miscellaneous Systems} (10. b3 exd4 11. Nxd4 Re8 12. Bf4 Nc5 13. Re1 Nh5 14. Be3 Nf6 15. f3 Qc7 16. Qd2 b6 17. Rad1 Bb7 {1-0 (42) Bauer,C (2634)-Berg,E (2581) Maastricht 2016}) 10... h6 {[%emt 0:01:09]} 11. Be3 {[%emt 0:00:04]} Re8 $146 {[%emt 0:00:14]} ({Predecessor:} 11... exd4 12. Nxd4 Re8 13. Qd2 Kh7 14. Rad1 Qc7 15. Rfe1 Bf8 16. f4 Nc5 17. Bf2 Bd7 {0-1 (60) Stoinev,M (2231)-Abramovic,B (2436) Plovdiv 2014}) 12. Qd2 {[%emt 0:00:13]} Kh7 {[%emt 0:00:03]} 13. Rad1 {[%emt 0:00:56]} Qc7 {[%emt 0:02:53]} 14. f4 {[%emt 0:13:47]} exd4 {[%emt 0:14:35]} 15. Bxd4 {[%emt 0:00:52]} Nb6 {[%emt 0:00:49]} 16. b3 {[%emt 0:02:40]} d5 {[%emt 0:01:39]} 17. e5 {[%emt 0:22:35]} Ng8 {[%emt 0:00:17]} 18. Bc5 {[%emt 0:02:38]} f6 {[%emt 0:02:27]} 19. exf6 {[%emt 0:00:45]} Nxf6 {[%emt 0:00:10]} 20. g4 {[%emt 0:01:12]} Nbd7 {[%emt 0:02:30]} 21. Bf2 {[%emt 0:00:18]} Nf8 {[%emt 0:01:31]} 22. Kh1 {[%emt 0:02:27]} h5 $11 {[%emt 0:13:04]} 23. g5 {[%emt 0:07:41]} Ng8 {[%emt 0:05:27]} 24. Nd4 {[%emt 0:08:12]} Ne7 {[%emt 0:03:21]} 25. Nce2 {[%emt 0:00:51]} Nf5 {[%emt 0:04:55]} 26. c4 {[%emt 0:02:42]} dxc4 {[%emt 0:04:20]} 27. bxc4 {[%emt 0:00:34]} Bd7 {[%emt 0:00:44]} 28. Qc1 {[%emt 0:17:15]} Rad8 {[%emt 0:05:23]} 29. c5 {[%emt 0:01:33]} Bc8 {[%emt 0:01:46]} 30. Nxf5 {[%emt 0:04:30]} Bxf5 {[%emt 0:00:32]} 31. Rxd8 {[%emt 0:00:57]} Qxd8 {[%emt 0:00:59]} 32. Ng3 {[%emt 0:00:13]} Qd7 {[%emt 0:02:08]} 33. Nxf5 {[%emt 0:05:32]} Qxf5 {[%emt 0:01:59]} 34. Qd2 {[%emt 0:00:17]} Ne6 {[%emt 0:00:32]} 35. Qd7 {[%emt 0:00:19]} Rd8 {[%emt 0:01:32]} 36. Qxb7 {[%emt 0:00:04]} Rd3 {[%emt 0:11:44]} 37. Qxc6 {[%emt 0:03:23]} Nxf4 {[%emt 0:00:16]} 38. Qe4 {[%emt 0:00:32]} Rxh3+ {[%emt 0:00:20]} 39. Kg1 {[%emt 0:00:01]} Qxg5 {[%emt 0:01:47]} 40. c6 {[%emt 0:00:00]} Rc3 {[%emt 0:00:00]} 41. Be1 {[%emt 0:14:01]} Rc4 {[%emt 0:03:24]} 42. Qf3 {[%emt 0:00:20]} Nxg2 {[%emt 0:00:38]} 43. Qxg2 {[%emt 0:01:27]} Rg4 {[%emt 0:00:10]} 0-1